bitfinex-derivatives/quotes_ETHF0:USTF0_20250126
["timestamp","ask_amount","ask_price","bid_price","bid_amount"]
[1737851589135,0.48221,3318.5,3318.0,0.4913]
[1737851589334,0.48221,3318.5,3318.1,0.48227]
[1737851589536,0.48221,3318.5,3318.0,0.97358]
[1737851591735,0.48221,3318.5,3318.3,0.98147033]
[1737851592243,0.90319085,3318.5,3318.3,0.98147033]
[1737851593540,0.90319085,3318.5,3318.4,0.51580001]
[1737851595037,0.90319085,3318.5,3317.5,1.20587]
[1737851595038,1.7619137,3318.5,3317.5,0.98147033]
[1737851595233,4.18927033,3318.0,3317.4,0.4879]
[1737851595437,0.48237,3317.4,3317.3,4.18927033]
[1737851597737,0.48237,3317.4,3317.3,3.2078]
[1737851611256,0.48239,3317.3,3317.2,1.0314]
[1737851612651,0.4811,3317.6,3317.2,1.0314]
[1737851612848,0.0045184,3317.7,3317.6,0.48234]
[1737851613354,0.0045184,3317.7,3317.6,0.98854]
[1737851614347,0.0045184,3317.7,3317.6,4.19634]
[1737851619759,0.0045184,3317.7,3317.6,5.17774264]
[1737851623168,3.2078,3318.5,3317.6,10.67680528]
[1737851623471,3.2078,3318.5,3318.4,1.46363264]
[1737851624258,0.48219,3318.7,3318.6,0.48219]
[1737851624669,0.4822,3318.6,3318.5,0.4822]
[1737851624963,0.9696984,3318.8,3318.7,0.48218]
[1737851625263,0.9696984,3318.8,3318.7,1.46358264]
[1737851625264,0.4875184,3318.8,3318.7,1.46358264]
[1737851625561,0.0045184,3318.8,3318.7,1.46358264]
[1737851629772,0.0045184,3318.8,3318.7,2.44498528]
[1737851629971,0.0045184,3318.8,3318.7,7.44498528]
[1737851631766,0.0045184,3318.8,3318.7,7.55396884]
[1737851632476,1e-08,3318.8,3318.7,7.55396884]
[1737851635973,1e-08,3318.8,3318.7,9.62575768]
[1737851636472,1e-08,3318.8,3318.7,9.86888981]
[1737851638875,1e-08,3318.8,3318.7,7.79710097]
[1737851639278,1e-08,3318.8,3318.7,9.86888981]
[1737851641673,0.4735,3319.6,3319.5,0.48207]
[1737851641873,2.979,3320.8,3319.5,0.48207]
[1737851641874,13.42380264,3320.5,3319.6,1.20513]
[1737851642073,12.94187264,3320.5,3320.3,2.07178884]
[1737851642275,0.48194,3320.4,3320.3,2.07178884]
[1737851642473,0.48194,3320.4,3320.3,2.55373884]
[1737851642674,0.48194,3320.4,3320.3,2.07178884]
[1737851642876,0.48194,3320.4,3320.3,2.55373884]
[1737851645279,0.8047,3320.6,3320.3,2.55373884]
[1737851645473,0.48193,3320.5,3320.3,2.55373884]
[1737851647479,0.8047,3320.6,3320.3,2.07178884]
[1737851647785,1.28662,3320.6,3320.4,0.48193]
[1737851648574,0.8047,3320.6,3320.3,2.07178884]
[1737851648780,0.48197,3320.2,3320.1,3.2078]
[1737851649084,0.48197,3320.2,3319.6,2.952]
[1737851649085,1.20502,3320.0,3319.1,2.07178884]
[1737851649288,0.4821,3319.3,3319.1,2.07178884]
[1737851649486,0.48211,3319.2,3319.1,2.07178884]
[1737851650790,0.48215,3318.9,3318.8,2.07630724]
[1737851651181,0.48215,3318.9,3318.8,0.0045184]
[1737851651785,0.41970283,3319.3,3318.8,2.07630724]
[1737851651984,3.2078,3319.1,3318.8,2.55846724]
[1737851652185,0.48215,3318.9,3318.8,2.07630724]
[1737851653789,0.48215,3318.9,3318.8,2.55847724]
[1737851654190,0.5048,3319.0,3318.8,2.55847724]
[1737851654396,0.98695,3319.0,3318.8,2.55847724]
[1737851655393,0.5048,3319.0,3318.8,2.55847724]
[1737851655594,0.5048,3319.0,3318.9,0.48215]
[1737851655997,0.98694,3319.0,3318.9,0.48215]
[1737851656503,0.5048,3319.0,3318.9,0.48215]
[1737851661004,0.5048,3319.0,3318.8,2.07630724]
[1737851661204,0.48215,3318.9,3318.8,0.4866784]
[1737851661803,0.98695,3319.0,3318.8,0.4866784]
[1737851662210,0.98695,3319.0,3318.8,0.0045184]
[1737851662406,0.5048,3319.0,3318.9,0.48215]
[1737851663005,0.5048,3319.0,3318.9,1.46425]
[1737851664207,3.2078,3319.1,3319.0,0.48214]
[1737851669118,3.2078,3319.1,3318.9,0.9821]
[1737851669119,6.1868,3319.6,3318.9,0.9821]
[1737851669416,6.1868,3319.6,3319.5,0.48207]
[1737851670711,2.979,3319.6,3319.5,0.48207]
[1737851671818,2.979,3319.6,3319.5,1.51037]
[1737851673511,0.5169,3319.8,3319.7,0.48204]
[1737851673808,0.48202,3319.8,3319.6,0.48204]
[1737851674221,0.48202,3319.8,3319.7,0.48204]
[1737851675317,0.48204,3319.7,3319.6,0.48204]
[1737851675626,0.512,3320.0,3319.5,1.0283]
[1737851675627,0.78007292,3319.9,3319.5,0.5217]
[1737851675819,0.48205,3319.6,3319.5,0.5217]
[1737851676618,1.26212292,3319.6,3319.5,0.5217]
[1737851680718,0.78007292,3319.6,3319.5,0.5217]
[1737851680924,0.78113172,3319.6,3319.5,0.5217]
[1737851681123,0.78113172,3319.7,3319.5,0.5217]
[1737851681315,0.78113172,3319.6,3319.5,1.00377]
[1737851681517,0.78113172,3319.6,3319.5,0.5217]
[1737851681718,0.78113172,3319.6,3319.5,1.00377]
[1737851681921,0.78113172,3319.6,3319.5,0.5217]
[1737851682120,0.78113172,3319.7,3319.5,1.00377]
[1737851682322,0.4214148,3319.6,3319.5,1.00377]
[1737851682522,0.78108992,3319.7,3319.6,0.48205]
[1737851683627,0.4214148,3319.7,3319.6,0.48205]
[1737851683928,0.48203,3319.8,3319.7,0.48204]
[1737851685130,0.42146564,3319.9,3319.5,0.5217]
[1737851685328,0.48204,3319.7,3319.5,0.5217]
[1737851685628,0.48204,3319.7,3319.5,1.00376]
[1737851687931,0.48205,3319.6,3319.5,1.00376]
[1737851688829,3.2078,3319.8,3319.5,1.00376]
[1737851689030,0.48205,3319.7,3319.5,1.00376]
[1737851689431,0.48205,3319.6,3319.5,1.00376]
[1737851692834,0.48205,3319.6,3319.5,0.5217]
[1737851694529,0.48205,3319.6,3319.5,1.00377]
[1737851697839,0.84207846,3319.6,3319.5,1.00377]
[1737851698338,0.48205,3319.6,3319.5,1.00377]
[1737851699247,1.26392715,3319.6,3319.5,1.00377]
[1737851699444,1.26392715,3319.6,3319.5,0.5217]
[1737851699641,0.4821,3319.3,3319.2,0.9907]
[1737851699946,1.98702715,3319.6,3319.0,4.18876333]
[1737851699947,0.48211,3319.2,3319.1,0.5066]
[1737851700344,1.26398715,3319.2,3319.1,0.5066]
[1737851701440,0.48215,3318.9,3318.8,0.0045184]
[1737851702145,1.26402715,3318.9,3318.8,0.0045184]
[1737851704145,0.78187715,3318.9,3318.8,0.0045184]
[1737851704347,0.42184869,3318.9,3318.8,0.4866884]
[1737851704647,3.68995,3319.0,3318.8,0.4866884]
[1737851704848,3.68995,3319.0,3318.9,0.5147]
[1737851705044,3.62882834,3319.0,3318.9,0.99685]
[1737851705647,0.42102834,3319.0,3318.9,0.99685]
[1737851705850,0.4821,3319.3,3319.1,0.48212]
[1737851706147,3.68989,3319.4,3319.2,0.97451]
[1737851706351,3.46105,3319.7,3319.4,0.48208]
[1737851706646,2.979,3319.7,3319.4,2.07297018]
[1737851706844,3.2078,3319.8,3319.6,0.48205]
[1737851707042,3.2078,3319.8,3319.7,3.03671018]
[1737851707643,0.48197,3320.2,3320.0,0.48199]
[1737851707950,3.2078,3320.3,3320.1,0.4937]
[1737851708250,3.68976,3320.3,3320.1,0.4937]
[1737851708451,3.68976,3320.3,3320.1,0.97567]
[1737851708953,3.68976,3320.3,3320.1,0.4937]
[1737851709748,0.48197,3320.2,3320.1,0.4937]
[1737851711353,13.4563003,3320.2,3320.1,0.4937]
[1737851712649,12.9743303,3320.2,3320.1,0.4937]
[1737851712849,12.9743303,3320.2,3320.1,0.97568]
[1737851715155,13.4563003,3320.2,3320.1,0.4937]
[1737851715358,13.87680025,3320.2,3320.1,0.4937]
[1737851718356,13.39483025,3320.2,3319.8,0.48201]
[1737851718552,0.482,3320.0,3319.8,0.48201]
[1737851719153,1.00409,3320.1,3319.8,0.48202]
[1737851719464,1.00409,3320.1,3319.8,0.96392]
[1737851719847,1.00409,3320.1,3319.8,0.4819]
[1737851719848,0.48201,3319.9,3319.8,0.4819]
[1737851721357,0.8410254,3319.9,3319.8,0.4819]
[1737851721555,1.26161679,3319.9,3319.8,0.4819]
[1737851722663,3.98740679,3319.9,3319.7,0.498]
[1737851722967,1.26162679,3319.8,3319.7,0.498]
[1737851723365,0.77960679,3319.8,3319.2,1.48251]
[1737851723668,0.48209,3319.4,3319.3,0.4945]
[1737851723965,3.2078,3319.9,3319.3,0.4945]
[1737851724263,0.42059316,3319.8,3319.7,0.48204]
[1737851724459,0.35899175,3319.9,3319.8,0.48202]
[1737851724662,0.482,3320.0,3319.8,0.48202]
[1737851724852,0.482,3320.0,3319.9,0.4852]
[1737851725059,0.35899656,3320.1,3319.9,0.4852]
[1737851725255,0.35899656,3320.1,3320.0,2.55496018]
[1737851725454,12.9743303,3320.2,3320.1,0.48198]
[1737851727369,12.9743303,3320.2,3320.1,0.98678]
[1737851727670,11.95013032,3320.2,3320.1,0.98678]
[1737851728262,11.95013032,3320.2,3320.1,0.5048]
[1737851728263,12.43210032,3320.2,3320.1,0.5048]
[1737851734772,11.95013032,3320.2,3320.1,0.98678]
[1737851736077,11.95013032,3320.2,3320.1,4.19458]
[1737851737174,0.00451001,3320.7,3320.1,3.7126]
[1737851737369,0.77506641,3320.7,3320.6,2.55488018]
[1737851738171,0.77506641,3320.7,3320.3,2.07297018]
[1737851738375,0.77506641,3320.7,3320.1,3.7126]
[1737851738573,3.2078,3320.4,3320.1,0.5048]
[1737851738770,0.48197,3320.2,3320.1,0.5048]
[1737851738971,1.2525264,3320.2,3320.1,0.5048]
[1737851742571,1.2525264,3320.2,3320.0,0.40184624]
[1737851742771,0.7705564,3320.1,3320.0,0.40184624]
[1737851743482,0.48197,3320.2,3320.0,0.40184624]
[1737851743878,3.2078,3320.4,3319.9,0.4852]
[1737851743879,0.48198,3320.1,3319.9,0.9672]
[1737851745179,0.48197,3320.2,3320.0,0.48199]
[1737851745876,0.48197,3320.2,3320.1,0.4984]
[1737851747089,3.2078,3320.4,3320.1,0.4984]
[1737851747292,3.2078,3320.4,3320.3,2.55492018]
[1737851747293,2.5450965,3320.4,3320.3,2.55492018]
[1737851749089,0.48192,3320.6,3320.4,0.48193]
[1737851749292,0.48192,3320.6,3320.5,0.5184]
[1737851749691,0.48192,3320.6,3320.5,1.00032]
[1737851750378,0.48194,3320.4,3320.0,5.76276018]
[1737851750588,3.2078,3320.4,3320.0,2.59137018]
[1737851750889,0.48198,3320.1,3320.0,0.5184]
[1737851751282,1.2523302,3320.1,3320.0,0.5184]
[1737851754177,0.48201,3319.9,3319.8,1.0273]
[1737851754678,1.2523602,3319.9,3319.8,1.0273]
[1737851758192,1.2523602,3319.9,3319.8,1.50932]
[1737851758494,0.48201,3319.9,3319.8,1.50932]
[1737851758793,0.48201,3319.9,3319.8,1.0273]
[1737851760089,3.2078,3320.0,3319.4,2.07297018]
[1737851760398,0.48207,3319.5,3319.4,1.0337]
[1737851761587,0.48206,3319.6,3319.4,1.0337]
[1737851761794,0.48206,3319.6,3319.4,1.51577]
[1737851762193,0.9792,3319.9,3319.4,1.51577]
[1737851762495,0.48207,3319.5,3319.4,1.0337]
[1737851763090,0.48207,3319.5,3319.4,1.51578]
[1737851766094,0.48207,3319.5,3319.4,1.0337]
[1737851766399,0.4821,3319.3,3319.2,3.2078]
[1737851766592,0.48214,3319.1,3318.9,1.95004]
[1737851768101,0.48214,3319.0,3318.9,1.4679]
[1737851768498,0.4111349,3319.2,3318.9,1.4679]
[1737851768795,0.48213,3319.1,3318.9,1.4679]
[1737851769393,0.48213,3319.1,3318.9,1.95005]
[1737851770498,0.8932549,3319.2,3319.0,0.48213]
[1737851771800,0.48212,3319.2,3319.0,0.48213]
[1737851772403,0.48212,3319.2,3319.1,0.48213]
[1737851773604,0.48211,3319.2,3319.1,0.48213]
[1737851773794,0.48211,3319.2,3319.0,0.48213]
[1737851775305,0.48213,3319.1,3318.9,1.95005]
[1737851778095,0.5174,3319.3,3319.0,0.48213]
[1737851778096,0.48212,3319.2,3319.0,0.48213]
[1737851781205,3.6895,3319.4,3319.0,0.48213]
[1737851781411,3.6895,3319.4,3318.9,1.4679]
[1737851781596,3.6895,3319.4,3318.8,0.0045184]
[1737851781597,0.48215,3318.9,3318.8,0.0045184]
[1737851783898,0.99775,3318.9,3318.8,0.0045184]
[1737851788197,1.76770415,3318.9,3318.8,0.0045184]
[1737851792107,1.76770415,3318.9,3318.3,3.2078]
[1737851792108,1.28555415,3318.9,3318.3,3.2078]
[1737851792303,0.48223,3318.4,3318.3,3.2078]
[1737851793206,0.48227,3318.1,3318.0,2.01358]
[1737851793508,0.48227,3318.1,3318.0,2.0180984]
[1737851793708,0.48227,3318.1,3318.0,1.5358184]
[1737851793902,0.48227,3318.2,3318.0,2.0180984]
[1737851799419,0.48227,3318.1,3318.0,2.0180984]
[1737851801203,0.48226,3318.2,3318.1,0.48226]
[1737851801515,0.4822,3318.6,3318.5,0.4822]
[1737851801814,3.2123184,3318.7,3318.3,2.07297018]
[1737851802314,0.4822,3318.6,3318.4,0.48222]
[1737851802810,3.2123184,3318.7,3318.5,0.4937]
[1737851803005,3.2123184,3318.7,3318.6,1.4988]
[1737851803211,3.6944984,3318.7,3318.6,1.0166]
[1737851803413,3.2123184,3318.7,3318.6,1.0166]
[1737851803709,3.2123184,3318.7,3318.6,1.4988]
[1737851804320,0.0045184,3318.7,3318.6,1.4988]
[1737851804906,0.0045184,3318.7,3318.6,1.0166]
[1737851805717,0.4866984,3318.7,3318.6,1.0166]
[1737851806916,0.0045184,3318.7,3318.6,1.0166]
[1737851807106,0.0045184,3318.7,3318.6,1.4988]
[1737851808420,0.0045184,3318.7,3318.6,3.57177018]
[1737851814122,0.77576173,3318.7,3318.6,1.4988]
[1737851814909,0.0045184,3318.7,3318.6,1.4988]
[1737851815115,0.77576173,3318.7,3318.6,1.4988]
[1737851815412,0.41625986,3318.7,3318.6,1.4988]
[1737851815611,0.0045184,3318.7,3318.6,3.57177018]
[1737851815807,0.41625986,3318.7,3318.6,3.57177018]
[1737851816020,0.0045184,3318.7,3318.6,3.57177018]
[1737851825919,1e-08,3318.7,3318.6,3.57177018]
[1737851827322,1e-08,3318.7,3318.6,3.81166506]
[1737851828920,11.45440636,3318.9,3318.8,0.48217]
[1737851829122,11.45440636,3318.9,3318.8,3.68997]
[1737851829719,11.45440636,3318.9,3318.8,4.67084999]
[1737851831324,11.44988797,3318.9,3318.8,5.65172998]
[1737851832126,10.3858004,3318.9,3318.8,10.65172998]
[1737851832333,9.6871004,3318.9,3318.8,10.65172998]
[1737851833331,0.0045184,3319.2,3318.8,10.65172998]
[1737851833521,0.0045184,3319.2,3319.1,1.46300999]
[1737851833722,0.0045184,3319.2,3319.1,2.55344377]
[1737851837928,0.0045184,3319.2,3319.1,0.48213]
[1737851839633,0.4866284,3319.2,3319.1,0.48213]
[1737851841634,0.0045184,3319.2,3319.1,0.48213]
[1737851845332,0.4866284,3319.2,3319.1,0.48213]
[1737851845926,0.0045184,3319.2,3319.1,0.48213]
[1737851846332,0.4866284,3319.2,3319.1,0.48213]
[1737851846528,0.0045184,3319.2,3319.1,0.48213]
[1737851846929,0.41654649,3319.2,3319.1,0.48213]
[1737851847132,0.0045184,3319.2,3319.1,0.48213]
[1737851847830,1e-08,3319.2,3319.1,0.48213]
[1737851848133,1e-08,3319.2,3319.1,3.68993]
[1737851848938,0.48197,3320.2,3319.5,1.20517]
[1737851849125,0.5184,3320.2,3320.1,0.48198]
[1737851854332,0.4732,3320.3,3319.9,0.9908]
[1737851854536,0.4732,3320.3,3320.2,0.48197]
[1737851858043,0.4732,3320.3,3320.2,0.98207]
[1737851859044,0.4732,3320.3,3320.2,0.48197]
[1737851859340,0.95515,3320.3,3320.2,0.48197]
[1737851859543,0.95515,3320.3,3320.1,3.68977]
[1737851859738,0.4889,3320.2,3320.1,3.68977]
[1737851860346,0.90062681,3320.2,3320.1,3.68977]
[1737851861139,0.90062681,3320.2,3320.1,0.48197]
[1737851861950,0.4889,3320.2,3320.1,0.48197]
[1737851862144,0.90060356,3320.2,3320.1,0.48197]
[1737851863240,0.00451001,3320.5,3319.9,1.4909]
[1737851863442,0.48194,3320.4,3320.3,0.48195]
[1737851865745,0.48643001,3320.5,3320.1,3.2078]
[1737851865954,0.48643001,3320.5,3320.3,0.48194]
[1737851866348,0.00451001,3320.5,3320.1,3.2078]
[1737851867252,0.48644001,3320.5,3320.3,0.48194]
[1737851867649,0.00451001,3320.5,3320.4,0.48194]
[1737851867849,0.48643001,3320.5,3320.4,0.48194]
[1737851870256,0.48643001,3320.5,3320.3,0.48194]
[1737851870657,0.48195,3320.4,3320.3,0.48195]
[1737851870858,1.00275,3320.4,3320.3,0.48195]
[1737851872153,1.00275,3320.4,3320.2,0.98027216]
[1737851872357,1.00275,3320.4,3320.2,0.48196]
[1737851872554,1.00275,3320.4,3320.3,0.48195]
[1737851875867,1.41579714,3320.4,3320.3,0.48195]
[1737851876161,1.00275,3320.4,3320.3,0.48195]
[1737851876362,1.41606621,3320.4,3320.3,0.48195]
[1737851877253,1.77714361,3320.4,3320.3,0.48195]
[1737851877461,1.25634361,3320.4,3320.3,0.48195]
[1737851877654,0.89526621,3320.4,3320.3,0.48195]
[1737851878050,1.25634306,3320.4,3320.3,0.48195]
[1737851878766,0.77439306,3320.4,3320.3,0.48195]
[1737851878967,0.48644001,3320.5,3320.3,0.48194]
[1737851879257,0.77439306,3320.4,3320.3,0.48195]
[1737851880765,0.36107685,3320.4,3320.2,0.98027216]
[1737851880965,0.36107685,3320.4,3320.3,0.48195]
[1737851881166,0.77439306,3320.4,3320.3,0.48195]
[1737851883060,1.25633306,3320.4,3320.3,0.48195]
[1737851883964,0.77439306,3320.4,3320.3,0.48195]
[1737851884961,0.77439306,3320.4,3320.2,0.98027216]
[1737851884962,0.41331621,3320.4,3320.2,0.98027216]
[1737851885165,0.00451001,3320.5,3320.4,0.48194]
[1737851885363,0.00451001,3320.5,3320.4,1.46221216]
[1737851886364,0.00451001,3320.5,3320.4,4.67001216]
[1737851891170,0.98027216,3321.8,3320.4,9.18807216]
[1737851891464,0.98027216,3321.8,3320.3,2.40975]
[1737851891465,0.77344929,3321.7,3321.6,0.48176]
[1737851891664,0.41289414,3321.7,3321.6,1.51126]
[1737851892271,0.89462414,3321.9,3321.8,0.48173]
[1737851892670,0.89462414,3321.9,3321.7,0.48174]
[1737851892671,0.48174,3321.8,3321.7,0.48174]
[1737851892873,0.48174,3321.8,3321.7,0.48175]
[1737851893773,0.41289414,3321.9,3321.7,0.48175]
[1737851894070,1.25455159,3321.9,3321.7,0.48175]
[1737851894270,0.77282159,3321.8,3321.7,0.48175]
[1737851895669,1.25456159,3321.8,3321.6,1.51126]
[1737851895870,0.77282159,3321.7,3321.6,1.51126]
[1737851898274,1.25457159,3321.7,3321.6,1.51126]
[1737851898474,0.77282159,3321.7,3321.6,1.51126]
[1737851898969,0.77282159,3321.7,3321.6,0.5076]
[1737851898970,1.25457159,3321.7,3321.6,0.5076]
[1737851899277,0.48176,3321.6,3321.5,0.0045184]
[1737851899478,2.25118159,3321.6,3321.5,0.0045184]
[1737851901371,1.89125414,3321.6,3321.5,0.0045184]
[1737851901676,2.25083462,3321.6,3321.5,0.0045184]
[1737851903576,5.45863462,3321.6,3321.5,0.0045184]
[1737851904483,0.48174,3321.8,3321.6,0.48176]
[1737851904679,0.48174,3321.8,3321.7,0.5162]
[1737851904881,1.25317638,3321.8,3321.7,0.5162]
[1737851905179,0.89355801,3321.8,3321.7,0.5162]
[1737851905377,0.48174,3321.8,3321.7,0.5162]
[1737851906076,0.95594,3321.8,3321.7,0.5162]
[1737851906275,1.36775801,3321.8,3321.7,0.5162]
[1737851907576,0.41181801,3321.8,3321.7,0.5162]
[1737851907772,0.89354801,3321.9,3321.7,0.99794]
[1737851908376,0.41181801,3321.9,3321.8,0.48173]
[1737851908585,0.4742,3322.2,3321.8,2.06932257]
[1737851908586,0.4817,3322.1,3321.8,2.06932257]
[1737851908882,0.89353966,3322.1,3322.0,0.4817]
[1737851909073,0.77147768,3322.1,3322.0,0.4817]
[1737851909271,0.35963802,3322.1,3322.0,0.4817]
[1737851909482,0.77147768,3322.3,3322.2,0.48168]
[1737851909684,0.77147768,3322.3,3322.2,2.55100257]
[1737851910482,0.41183966,3322.3,3322.2,2.55100257]
[1737851911383,0.35937144,3322.4,3322.3,0.48166]
[1737851911577,0.35937144,3322.4,3322.3,1.48246]
[1737851911578,0.7712111,3322.4,3322.3,1.48246]
[1737851913389,1.2528611,3322.4,3322.3,1.0008]
[1737851914478,1.2528611,3322.4,3322.3,1.48246]
[1737851916088,0.89348966,3322.4,3322.3,1.48246]
[1737851916285,0.48165,3322.4,3322.3,1.48246]
[1737851916486,0.48165,3322.4,3322.3,1.0008]
[1737851917188,0.48165,3322.4,3322.3,1.48245]
[1737851919093,0.89327054,3322.4,3322.3,1.48245]
[1737851919285,0.48165,3322.4,3322.3,1.48245]
[1737851919886,0.89326054,3322.5,3322.3,1.48245]
[1737851920089,0.41162054,3322.4,3322.3,1.48245]
[1737851920483,0.48164,3322.5,3322.3,1.48245]
[1737851920890,1.25285366,3322.5,3322.3,1.48245]
[1737851921188,0.41162054,3322.4,3322.3,1.48245]
[1737851921491,0.48164,3322.5,3322.3,1.48245]
[1737851921891,1.25286898,3322.5,3322.3,1.48245]
[1737851922090,0.41162054,3322.4,3322.3,1.48245]
[1737851922499,0.48164,3322.5,3322.3,1.48245]
[1737851922894,0.89326054,3322.5,3322.3,1.48245]
[1737851923095,0.41162054,3322.4,3322.3,1.48245]
[1737851923297,0.48164,3322.5,3322.3,1.48245]
[1737851923797,0.77117806,3322.6,3322.3,1.48245]
[1737851924003,0.48165,3322.4,3322.3,1.48245]
[1737851924299,0.48163,3322.5,3322.3,1.48245]
[1737851924500,0.48164,3322.5,3322.3,1.48245]
[1737851925000,0.89337135,3322.5,3322.3,1.48245]
[1737851925299,0.48164,3322.5,3322.3,1.48245]
[1737851925698,0.48163,3322.5,3322.3,1.48245]
[1737851925897,0.89335561,3322.5,3322.3,1.48245]
[1737851926098,0.48163,3322.5,3322.3,1.48245]
[1737851926796,0.89336463,3322.5,3322.4,0.48165]
[1737851926996,0.41173463,3322.7,3322.3,1.0008]
[1737851927198,0.77127156,3322.7,3322.3,1.48246]
[1737851927397,0.48165,3322.4,3322.3,1.48246]
[1737851928003,0.48165,3322.4,3322.3,2.46151774]
[1737851930497,0.89353727,3322.4,3322.3,1.97985774]
[1737851930698,0.48165,3322.4,3322.3,1.97985774]
[1737851931504,0.84135839,3322.4,3322.3,1.97985774]
[1737851931706,1.25324566,3322.4,3322.3,1.97985774]
[1737851934403,1.25324566,3322.4,3322.3,0.496]
[1737851934606,0.77159566,3322.4,3322.1,0.97905774]
[1737851934906,0.48168,3322.2,3322.1,0.97905774]
[1737851935101,1.25327566,3322.2,3322.1,0.97905774]
[1737851935301,1.25327566,3322.2,3322.1,1.46074774]
[1737851936905,0.77159566,3322.2,3322.1,1.46074774]
[1737851937207,0.41188727,3322.2,3322.1,0.97905774]
[1737851937518,0.77159566,3322.6,3322.3,1.20416]
[1737851937707,0.77159566,3322.5,3322.4,4.19575]
[1737851937904,0.41277969,3322.9,3322.8,0.48159]
[1737851938203,0.48157,3323.0,3322.9,1.48535774]
[1737851938405,0.84223399,3323.0,3322.9,0.76052864]
[1737851938609,1.25501363,3323.0,3322.9,1.24209864]
[1737851939207,1.25501363,3323.0,3322.9,0.76052864]
[1737851939708,1.25501363,3323.0,3322.9,0.5063]
[1737851939911,1.25501363,3323.0,3322.9,0.50476552]
[1737851940208,1.25501363,3323.0,3322.9,0.98633552]
[1737851940808,0.77344363,3323.0,3322.9,0.98633552]
[1737851941007,0.77344363,3323.1,3322.9,0.50476552]
[1737851941208,0.77344363,3323.0,3322.9,0.98633552]
[1737851941411,0.75696245,3323.1,3323.0,0.48156]
[1737851941603,0.75694935,3323.1,3323.0,0.48156]
[1737851941804,1.23848935,3323.1,3323.0,0.48156]
[1737851942712,1.23848935,3323.1,3322.9,0.50476552]
[1737851943012,0.75694935,3323.0,3322.9,0.98632552]
[1737851946610,1.23850935,3323.0,3322.9,0.98632552]
[1737851946805,0.75694935,3323.0,3322.9,0.98632552]
[1737851947005,0.75694935,3323.1,3322.9,0.98633552]
[1737851947314,1.23849935,3323.1,3323.0,0.48156]
[1737851947700,0.75694935,3323.1,3323.0,0.48156]
[1737851949612,0.75694935,3323.1,3323.0,0.97346]
[1737851950312,1.23848935,3323.1,3323.0,0.97346]
[1737851950506,0.75694935,3323.1,3323.0,0.97346]
[1737851953114,1.23848935,3323.1,3323.0,0.97346]
[1737851954517,0.75694935,3323.1,3323.0,0.97346]
[1737851954712,0.48154,3323.1,3323.0,0.97345]
[1737851955017,0.48154,3323.2,3323.0,0.97345]
[1737851955316,1.23848935,3323.2,3323.1,0.5147]
[1737851956622,1.23848935,3323.2,3323.1,0.99624]
[1737851959020,0.75694935,3323.2,3323.1,3.06395999]
[1737851959518,0.48151,3323.4,3323.1,3.06395999]
[1737851959519,0.75694935,3323.3,3323.1,2.58241999]
[1737851959715,0.75694935,3323.3,3323.2,0.48153]
[1737851960117,1.23846935,3323.3,3323.2,0.48153]
[1737851960421,0.75694935,3323.3,3323.2,0.48153]
[1737851960921,0.48151,3323.4,3323.2,0.48153]
[1737851961413,0.48151,3323.4,3323.3,0.4723]
[1737851961608,0.48151,3323.4,3323.3,0.95382]
[1737851961816,0.48149,3323.5,3323.3,1.45070936]
[1737851962012,0.4815,3323.4,3323.3,1.93221936]
[1737851962509,3.2078,3323.6,3323.3,1.45070936]
[1737851962510,0.75523862,3323.5,3323.3,1.45070936]
[1737851962709,3.68928,3323.6,3323.5,0.48149]
[1737851962919,4.44446777,3323.6,3323.5,0.48149]
[1737851963212,4.44446777,3323.6,3323.5,0.5046]
[1737851963818,1.23666777,3323.6,3323.5,0.5046]
[1737851966515,1.23665777,3323.6,3323.5,0.98609]
[1737851966717,1.23665777,3323.6,3323.5,0.5046]
[1737851968125,1.2369064,3323.6,3323.5,0.5046]
[1737851968317,1.23688403,3323.6,3323.5,0.5046]
[1737851968624,0.87698889,3323.6,3323.5,0.5046]
[1737851968813,0.48147,3323.6,3323.5,0.98608]
[1737851969009,0.48147,3323.6,3323.5,0.5046]
[1737851969415,1.23687448,3323.6,3323.5,0.5046]
[1737851969720,1.23687448,3323.6,3323.5,0.98609]
[1737851971015,1.23687448,3323.6,3323.5,0.5046]
[1737851971216,0.75540448,3323.6,3323.5,0.98609]
[1737851972023,1.23687448,3323.6,3323.5,0.5046]
[1737851972325,0.48149,3323.5,3323.4,0.97840936]
[1737851972520,1.23689448,3323.5,3323.4,0.97840936]
[1737851972915,1.23689448,3323.5,3323.4,1.45990936]
[1737851973517,1.23689448,3323.5,3323.4,0.97840936]
[1737851973712,1.23689448,3323.5,3323.4,1.45990936]
[1737851973926,1.23689448,3323.5,3323.4,0.97840936]
[1737851974524,1.23689448,3323.5,3323.4,1.45990936]
[1737851976023,0.87700889,3323.5,3323.4,1.45990936]
[1737851976424,0.48149,3323.5,3323.4,1.45990936]
[1737851977923,0.48149,3323.6,3323.4,1.45990936]
[1737851978121,0.48149,3323.6,3323.5,0.97840936]
[1737851980624,0.48147,3323.7,3323.5,0.97840936]
[1737851980817,0.48147,3323.7,3323.6,0.5231]
[1737851981215,0.48147,3323.7,3323.6,1.0036]
[1737851982020,0.39597596,3323.8,3323.6,1.0036]
[1737851982329,3.2078,3324.0,3323.9,0.48143]
[1737851982532,3.60389229,3324.0,3323.9,1.45983936]
[1737851982827,3.2078,3324.0,3323.9,1.45983936]
[1737851983125,3.2078,3324.0,3323.9,0.97840936]
[1737851983327,3.68921,3324.0,3323.9,0.97840936]
[1737851983521,4.08526531,3324.0,3323.9,0.97840936]
[1737851984026,3.96402305,3324.0,3323.9,1.45983936]
[1737851984720,3.96402305,3324.0,3323.9,2.43824872]
[1737851984919,3.96402305,3324.0,3323.9,1.45983936]
[1737851985128,0.75622305,3324.0,3323.9,2.43824872]
[1737851985620,0.36016774,3324.0,3323.9,1.95681872]
[1737851985825,0.39605531,3324.5,3324.2,0.48138]
[1737851985826,0.48137,3324.4,3324.2,0.48138]
[1737851986026,1.23759305,3324.4,3324.3,1.47100936]
[1737851992629,0.39605531,3324.4,3324.3,1.95237936]
[1737851992830,0.39605531,3324.4,3324.3,1.47100936]
[1737851993025,0.48136,3324.4,3324.3,1.47100936]